{"text_format":"1","workbook":"xlsx","n_sheets":2,"sheets":["Istruzioni e configurazione","12 sett."],"not_rendered":{"charts":0,"images":0,"macros":1,"external_links":0,"defined_names":13,"comments":0,"pivot_tables":0},"unopened":[],"bounds":{"document_bytes":16777216,"sheet_cells":100000,"rows_first":2000,"rows_last":500,"rows_between":2000,"halvings":0,"cell_chars":16384,"cell_head_chars":4096},"cells_cut":0,"cells_raw":0,"read":"whole","date_system":"1900"}

{"sheet":"Istruzioni e configurazione","index":0,"n_rows":23,"n_cols":9,"rows_kept":23,"cut":false,"hidden":false,"merged":[[3,2,3,4],[5,2,5,4],[7,2,7,4],[9,2,9,4],[3,7,3,8],[5,7,5,8],[7,7,7,8],[9,7,9,8],[11,7,11,8],[4,7,4,8],[6,7,6,8],[8,7,8,8],[10,7,10,8]]}
[]
[null,"Istruzioni e configurazione"]
[]
[null,1,"Nella tabella delle Lezioni, inserire il nome delle lezioni che si desidera inserire in questo orario.",null,null,null,5,"Inserire la data di inizio dell'orario nella cella A5."]
[]
[null,2,"Nella tabella delle Attività, modificare le attività di esempio a seconda dei propri bisogni. ",null,null,null,6,"Nella riga 4, aggiungere le lezioni all'orario usando l'elenco a discesa. "]
[]
[null,3,"Nella cella I14, impostare il numero di righe che si desidera utilizzare per i compiti a casa assegnati per ciascun giorno.",null,null,null,7,"Sotto ciascuna lezione, aggiungere i compiti nella colonna Compiti ."]
[]
[null,4,"In un foglio degli orari, ad esempio 12 Sett., completare i passaggi dal 5 al 9.",null,null,null,8,"Stimare nella colonna delle ore il numero totale di ore di cui si avrà bisogno per ciascun compito. Questa colonna è indicata dall'icona di un orologio."]
[]
[null,null,null,null,null,null,9,"Quando il compito è completo, fare clic sulla colonna indicata da una casella di spunta accanto al compito stesso."]
[]
[null,null,"Lezioni",null,"Attività",null,null,"Numero di righe per giorno:",5]
[null,null,"Matematica 101",null,"Discussione"]
[null,null,"Inglese 105",null,"Laboratorio"]
[null,null,"Francese 103",null,"Conferenze"]
[null,null,"Scienze 101",null,"Quiz"]
[null,null,"Storia 101",null,"Lettura"]
[null,null,null,null,"Riflessione"]
[null,null,null,null,"Tesina di ricerca"]
[null,null,null,null,"Compito di revisione"]
[null,null,null,null,"Studio"]

{"sheet":"12 sett.","index":1,"n_rows":103,"n_cols":24,"rows_kept":103,"cut":false,"hidden":false,"merged":[]}
[]
[null,"Compiti a casa"]
[]
[null,"Inserire una data di inizio","Totale"," Lezione:",null,"Matematica 101"," Lezione:",null,"Inglese 105"," Lezione:",null,"Francese 103"," Lezione:",null,"Scienze 101"," Lezione:",null,null," Lezione:",null,null," Lezione:"]
[null,"2011-09-12",null,null,null,"COMPITO",null,null,"COMPITO",null,null,"COMPITO",null,null,"COMPITO",null,null,"COMPITO",null,null,"COMPITO",null,null,"COMPITO"]
[]
[null,{"$f":"GiornoOrario","v":"2011-09-12"},{"$f":"DailyHourTotals","v":6.5},1,1.5,"Lettura",1,2,"Studio",null,1,"Lettura",1,1,"Quiz"]
[null,{"$f":"GiornoOrario","v":""},{"$f":"DailyHourTotals","v":""},1,1,"Compito di revisione"]
[null,{"$f":"GiornoOrario","v":""},{"$f":"DailyHourTotals","v":""}]
[null,{"$f":"GiornoOrario","v":""},{"$f":"DailyHourTotals","v":""}]
[null,{"$f":"GiornoOrario","v":""},{"$f":"DailyHourTotals","v":""}]
[null,{"$f":"GiornoOrario","v":"2011-09-13"},{"$f":"DailyHourTotals","v":0}]
[null,{"$f":"GiornoOrario","v":""},{"$f":"DailyHourTotals","v":""}]
[null,{"$f":"GiornoOrario","v":""},{"$f":"DailyHourTotals","v":""}]
[null,{"$f":"GiornoOrario","v":""},{"$f":"DailyHourTotals","v":""}]
[null,{"$f":"GiornoOrario","v":""},{"$f":"DailyHourTotals","v":""}]
[null,{"$f":"GiornoOrario","v":"2011-09-14"},{"$f":"DailyHourTotals","v":0}]
[null,{"$f":"GiornoOrario","v":""},{"$f":"DailyHourTotals","v":""}]
[null,{"$f":"GiornoOrario","v":""},{"$f":"DailyHourTotals","v":""}]
[null,{"$f":"GiornoOrario","v":""},{"$f":"DailyHourTotals","v":""}]
[null,{"$f":"GiornoOrario","v":""},{"$f":"DailyHourTotals","v":""}]
[null,{"$f":"GiornoOrario","v":"2011-09-15"},{"$f":"DailyHourTotals","v":0}]
[null,{"$f":"GiornoOrario","v":""},{"$f":"DailyHourTotals","v":""}]
[null,{"$f":"GiornoOrario","v":""},{"$f":"DailyHourTotals","v":""}]
[null,{"$f":"GiornoOrario","v":""},{"$f":"DailyHourTotals","v":""}]
[null,{"$f":"GiornoOrario","v":""},{"$f":"DailyHourTotals","v":""}]
[null,{"$f":"GiornoOrario","v":"2011-09-16"},{"$f":"DailyHourTotals","v":0}]
[null,{"$f":"GiornoOrario","v":""},{"$f":"DailyHourTotals","v":""}]
[null,{"$f":"GiornoOrario","v":""},{"$f":"DailyHourTotals","v":""}]
[null,{"$f":"GiornoOrario","v":""},{"$f":"DailyHourTotals","v":""}]
[null,{"$f":"GiornoOrario","v":""},{"$f":"DailyHourTotals","v":""}]
[null,{"$f":"GiornoOrario","v":"2011-09-17"},{"$f":"DailyHourTotals","v":0}]
[null,{"$f":"GiornoOrario","v":""},{"$f":"DailyHourTotals","v":""}]
[null,{"$f":"GiornoOrario","v":""},{"$f":"DailyHourTotals","v":""}]
[null,{"$f":"GiornoOrario","v":""},{"$f":"DailyHourTotals","v":""}]
[null,{"$f":"GiornoOrario","v":""},{"$f":"DailyHourTotals","v":""}]
[null,{"$f":"GiornoOrario","v":"2011-09-18"},{"$f":"DailyHourTotals","v":0}]
[null,{"$f":"GiornoOrario","v":""},{"$f":"DailyHourTotals","v":""}]
[null,{"$f":"GiornoOrario","v":""},{"$f":"DailyHourTotals","v":""}]
[null,{"$f":"GiornoOrario","v":""},{"$f":"DailyHourTotals","v":""}]
[null,{"$f":"GiornoOrario","v":""},{"$f":"DailyHourTotals","v":""}]
[null,{"$f":"GiornoOrario","v":""},{"$f":"DailyHourTotals","v":""}]
[null,{"$f":"GiornoOrario","v":""},{"$f":"DailyHourTotals","v":""}]
[null,{"$f":"GiornoOrario","v":""},{"$f":"DailyHourTotals","v":""}]
[null,{"$f":"GiornoOrario","v":""},{"$f":"DailyHourTotals","v":""}]
[null,{"$f":"GiornoOrario","v":""},{"$f":"DailyHourTotals","v":""}]
[null,{"$f":"GiornoOrario","v":""},{"$f":"DailyHourTotals","v":""}]
[null,{"$f":"GiornoOrario","v":""},{"$f":"DailyHourTotals","v":""}]
[null,{"$f":"GiornoOrario","v":""},{"$f":"DailyHourTotals","v":""}]
[null,{"$f":"GiornoOrario","v":""},{"$f":"DailyHourTotals","v":""}]
[null,{"$f":"GiornoOrario","v":""},{"$f":"DailyHourTotals","v":""}]
[null,{"$f":"GiornoOrario","v":""},{"$f":"DailyHourTotals","v":""}]
[null,{"$f":"GiornoOrario","v":""},{"$f":"DailyHourTotals","v":""}]
[null,{"$f":"GiornoOrario","v":""},{"$f":"DailyHourTotals","v":""}]
[null,{"$f":"GiornoOrario","v":""},{"$f":"DailyHourTotals","v":""}]
[null,{"$f":"GiornoOrario","v":""},{"$f":"DailyHourTotals","v":""}]
[null,{"$f":"GiornoOrario","v":""},{"$f":"DailyHourTotals","v":""}]
[null,{"$f":"GiornoOrario","v":""},{"$f":"DailyHourTotals","v":""}]
[null,{"$f":"GiornoOrario","v":""},{"$f":"DailyHourTotals","v":""}]
[null,{"$f":"GiornoOrario","v":""},{"$f":"DailyHourTotals","v":""}]
[null,{"$f":"GiornoOrario","v":""},{"$f":"DailyHourTotals","v":""}]
[null,{"$f":"GiornoOrario","v":""},{"$f":"DailyHourTotals","v":""}]
[null,{"$f":"GiornoOrario","v":""},{"$f":"DailyHourTotals","v":""}]
[null,{"$f":"GiornoOrario","v":""},{"$f":"DailyHourTotals","v":""}]
[null,{"$f":"GiornoOrario","v":""},{"$f":"DailyHourTotals","v":""}]
[null,{"$f":"GiornoOrario","v":""},{"$f":"DailyHourTotals","v":""}]
[null,{"$f":"GiornoOrario","v":""},{"$f":"DailyHourTotals","v":""}]
[null,{"$f":"GiornoOrario","v":""},{"$f":"DailyHourTotals","v":""}]
[null,{"$f":"GiornoOrario","v":""},{"$f":"DailyHourTotals","v":""}]
[null,{"$f":"GiornoOrario","v":""},{"$f":"DailyHourTotals","v":""}]
[null,{"$f":"GiornoOrario","v":""},{"$f":"DailyHourTotals","v":""}]
[null,{"$f":"GiornoOrario","v":""},{"$f":"DailyHourTotals","v":""}]
[null,{"$f":"GiornoOrario","v":""},{"$f":"DailyHourTotals","v":""}]
[null,{"$f":"GiornoOrario","v":""},{"$f":"DailyHourTotals","v":""}]
[null,{"$f":"GiornoOrario","v":""},{"$f":"DailyHourTotals","v":""}]
[null,{"$f":"GiornoOrario","v":""},{"$f":"DailyHourTotals","v":""}]
[null,{"$f":"GiornoOrario","v":""},{"$f":"DailyHourTotals","v":""}]
[null,{"$f":"GiornoOrario","v":""},{"$f":"DailyHourTotals","v":""}]
[null,{"$f":"GiornoOrario","v":""},{"$f":"DailyHourTotals","v":""}]
[null,{"$f":"GiornoOrario","v":""},{"$f":"DailyHourTotals","v":""}]
[null,{"$f":"GiornoOrario","v":""},{"$f":"DailyHourTotals","v":""}]
[null,{"$f":"GiornoOrario","v":""},{"$f":"DailyHourTotals","v":""}]
[null,{"$f":"GiornoOrario","v":""},{"$f":"DailyHourTotals","v":""}]
[null,{"$f":"GiornoOrario","v":""},{"$f":"DailyHourTotals","v":""}]
[null,{"$f":"GiornoOrario","v":""},{"$f":"DailyHourTotals","v":""}]
[null,{"$f":"GiornoOrario","v":""},{"$f":"DailyHourTotals","v":""}]
[null,{"$f":"GiornoOrario","v":""},{"$f":"DailyHourTotals","v":""}]
[null,{"$f":"GiornoOrario","v":""},{"$f":"DailyHourTotals","v":""}]
[null,{"$f":"GiornoOrario","v":""},{"$f":"DailyHourTotals","v":""}]
[null,{"$f":"GiornoOrario","v":""},{"$f":"DailyHourTotals","v":""}]
[null,{"$f":"GiornoOrario","v":""},{"$f":"DailyHourTotals","v":""}]
[null,{"$f":"GiornoOrario","v":""},{"$f":"DailyHourTotals","v":""}]
[null,{"$f":"GiornoOrario","v":""},{"$f":"DailyHourTotals","v":""}]
[null,{"$f":"GiornoOrario","v":""},{"$f":"DailyHourTotals","v":""}]
[null,{"$f":"GiornoOrario","v":""},{"$f":"DailyHourTotals","v":""}]
[null,{"$f":"GiornoOrario","v":""},{"$f":"DailyHourTotals","v":""}]
[null,{"$f":"GiornoOrario","v":""},{"$f":"DailyHourTotals","v":""}]
[null,{"$f":"GiornoOrario","v":""},{"$f":"DailyHourTotals","v":""}]
[null,{"$f":"GiornoOrario","v":""},{"$f":"DailyHourTotals","v":""}]
[null,{"$f":"GiornoOrario","v":""},{"$f":"DailyHourTotals","v":""}]
[null,{"$f":"GiornoOrario","v":""},{"$f":"DailyHourTotals","v":""}]
[null,{"$f":"GiornoOrario","v":""},{"$f":"DailyHourTotals","v":""}]
[null,{"$f":"GiornoOrario","v":""},{"$f":"DailyHourTotals","v":""}]